bitfinex/quotes_SOLUSD_20251002
["timestamp","ask_amount","ask_price","bid_price","bid_amount"]
[1759431672606,27.25961316,232.56,232.29,20.8]
[1759431672607,12.94,232.41,232.29,20.8]
[1759431672814,4.30200043,232.45,232.34,20.8]
[1759431673013,0.72,232.48,232.35,0.69]
[1759431673214,10.02,232.47,232.35,0.69]
[1759431673941,2.48626008,232.46,232.35,0.69]
[1759431674442,4.30200043,232.45,232.35,0.69]
[1759431674813,4.30200043,232.45,232.35,4.99379782]
[1759431675013,15.0570015,232.45,232.36,0.69]
[1759431676236,15.7770015,232.45,232.36,0.69]
[1759431677621,35.86200043,232.45,232.36,0.69]
[1759431678031,4.30200043,232.45,232.36,4.99353851]
[1759431678347,4.30200043,232.45,232.37,0.69]
[1759431678519,4.30200043,232.45,232.37,4.99333407]
[1759431678840,4.30200043,232.45,232.38,0.69]
[1759431679017,4.30176805,232.47,232.38,0.69]
[1759431679369,5.02176805,232.47,232.38,0.69]
[1759431680237,5.02176805,232.47,232.39,4.30311114]
[1759431680535,5.02176805,232.47,232.4,0.69]
[1759431680943,5.02176805,232.47,232.38,0.69]
[1759431681142,15.77584384,232.47,232.35,0.69]
[1759431681322,0.72,232.46,232.35,0.69]
[1759431681941,0.72,232.46,232.36,17.1]
[1759431682142,4.30200043,232.45,232.39,20.8]
[1759431682339,4.30200043,232.45,232.39,25.10310282]
[1759431682934,0.72,232.48,232.4,0.69]
[1759431684145,5.02144528,232.48,232.42,20.8]
[1759431684627,0.67,232.47,232.39,20.8]
[1759431685332,0.67,232.47,232.39,21.51]
[1759431685521,15.05505849,232.48,232.4,20.8]
[1759431685726,0.67,232.46,232.4,20.8]
[1759431686018,0.67,232.45,232.37,4.30348151]
[1759431686223,4.97217126,232.45,232.4,20.8]
[1759431687023,0.67,232.44,232.33,0.71]
[1759431687345,0.67,232.44,232.35,20.8]
[1759431687533,0.67,232.43,232.35,20.8]
[1759431687725,0.67,232.42,232.35,20.8]
[1759431688244,4.30274084,232.41,232.35,20.8]
[1759431688631,4.24099862,232.39,232.29,0.71]
[1759431688839,0.67,232.38,232.29,0.71]
[1759431689737,4.30348151,232.37,232.29,0.71]
[1759431689941,0.67,232.36,232.26,0.71]
[1759431690443,10.87647521,232.35,232.26,0.71]
[1759431690653,0.67,232.34,232.26,0.71]
[1759431690853,0.67,232.34,232.26,21.51]
[1759431691053,4.91099862,232.33,232.21,5.21627798]
[1759431691371,0.67,232.32,232.21,0.91]
[1759431691543,4.96099862,232.31,232.21,0.91]
[1759431691749,4.96099862,232.31,232.21,0.2]
[1759431691750,15.78672405,232.3,232.21,0.2]
[1759431692756,4.24099862,232.26,232.21,0.2]
[1759431693061,35.04099862,232.26,232.21,0.2]
[1759431693257,0.72,232.25,232.21,0.2]
[1759431693655,4.30607587,232.23,232.21,0.2]
[1759431693843,0.72,232.22,232.21,0.2]
[1759431694042,4.96099862,232.22,232.21,0.2]
[1759431694737,15.83747383,232.22,232.21,0.2]
[1759431694938,11.59647521,232.22,232.21,0.2]
[1759431695444,15.83747383,232.22,232.21,0.2]
[1759431698140,11.59647521,232.22,232.21,0.2]
[1759431698343,42.41647521,232.22,232.21,0.2]
[1759431698752,11.59647521,232.22,232.21,0.2]
[1759431698965,30.82,232.22,232.21,0.2]
[1759431699268,31.54,232.22,232.21,0.2]
[1759431700672,35.78099862,232.22,232.21,0.2]
[1759431701056,31.54,232.22,232.21,0.2]
[1759431701659,0.72,232.22,232.21,0.2]
[1759431701856,42.41647521,232.22,232.21,0.2]
[1759431703470,10.87647521,232.22,232.21,0.2]
[1759431703652,46.72273651,232.22,232.21,0.2]
[1759431704068,15.90273651,232.22,232.21,0.2]
[1759431704260,46.72273651,232.22,232.21,0.2]
[1759431705272,49.48467688,232.22,232.21,0.2]
[1759431706178,46.72273651,232.22,232.21,0.2]
[1759431706366,49.48467688,232.22,232.21,0.2]
[1759431706876,49.48467688,232.22,232.2,0.2]
[1759431706877,9.99999999,232.21,232.2,0.2]
[1759431707271,10.71999999,232.21,232.2,0.2]
[1759431707581,15.02644674,232.21,232.2,0.2]
[1759431709869,17.78838711,232.21,232.2,0.2]
[1759431710580,28.66486232,232.21,232.2,0.2]
[1759431714077,28.66486232,232.21,232.14,0.2]
[1759431714078,50.08673773,232.21,232.14,0.2]
[1759431714280,2.76194037,232.16,232.14,0.2]
[1759431714489,30.82,232.15,232.14,0.2]
[1759431715368,35.12755976,232.15,232.14,0.2]
[1759431716086,4.30755976,232.15,232.14,0.2]
[1759431716268,35.12755976,232.15,232.14,0.88]
[1759431716769,35.12755976,232.15,232.14,0.2]
[1759431718588,46.00403497,232.15,232.14,0.2]
[1759431718974,48.76597534,232.15,232.14,0.2]
[1759431719579,49.48597534,232.15,232.14,0.2]
[1759431720490,46.00403497,232.15,232.14,0.2]
[1759431720668,35.12755976,232.15,232.14,0.2]
[1759431720871,35.12755976,232.15,232.14,0.88]
[1759431721071,35.12755976,232.15,232.14,0.2]
[1759431721266,48.76597534,232.15,232.14,0.2]
[1759431721904,46.00403497,232.15,232.14,0.2]
[1759431722187,35.12755976,232.15,232.14,0.2]
[1759431722590,30.82,232.15,232.14,0.2]
[1759431722794,30.82,232.15,232.14,0.9]
[1759431723091,30.82,232.15,232.14,0.2]
[1759431724573,10.87647521,232.16,232.14,0.9]
[1759431724778,41.69647521,232.16,232.14,0.2]
[1759431725191,41.69647521,232.16,232.14,0.9]
[1759431725396,41.69647521,232.16,232.14,0.2]
[1759431726593,4.30755976,232.15,232.14,0.2]
[1759431728189,4.30663221,232.2,232.14,0.9]
[1759431728391,35.10663221,232.2,232.15,0.7]
[1759431728597,35.10663221,232.2,232.16,0.7]
[1759431729581,3.45194037,232.19,232.14,0.2]
[1759431729782,3.45194037,232.19,232.15,0.7]
[1759431729783,30.8,232.18,232.15,0.7]
[1759431730700,30.8,232.18,232.16,0.7]
[1759431730903,30.8,232.18,232.17,0.7]
[1759431731200,30.8,232.18,232.14,4.50774068]
[1759431731378,4.30682059,232.19,232.15,0.7]
[1759431731577,4.30682059,232.19,232.16,0.7]
[1759431732206,30.8,232.2,232.17,0.7]
[1759431732502,9.99999999,232.21,232.18,0.7]
[1759431732685,9.99999999,232.21,232.19,0.7]
[1759431732879,14.30646152,232.21,232.16,0.7]
[1759431733305,9.99999999,232.21,232.16,0.7]
[1759431734102,14.30647694,232.21,232.17,0.7]
[1759431734494,14.30647694,232.21,232.18,0.7]
[1759431734696,14.30647694,232.21,232.15,0.7]
[1759431734697,14.99647694,232.21,232.15,0.7]
[1759431737701,25.76259381,232.21,232.14,0.2]
[1759431737904,2.76194037,232.18,232.14,0.2]
[1759431738216,30.8,232.17,232.14,0.2]
[1759431738414,0.69,232.16,232.14,0.2]
[1759431738595,4.99755976,232.15,232.14,0.2]
[1759431738804,7.75950013,232.15,232.14,0.2]
[1759431739522,20.8,232.12,232.07,0.1]
[1759431739900,30.8,232.12,232.07,0.8]
[1759431740802,35.10812053,232.12,232.07,0.1]
[1759431740996,0.69,232.11,232.07,0.1]
[1759431741198,35.10812053,232.12,232.07,0.1]
[1759431741494,0.69,232.11,232.07,0.1]
[1759431741714,0.69,232.1,232.07,0.1]
[1759431743020,4.9984895,232.1,232.07,0.1]
[1759431743196,35.10825674,232.12,232.07,0.1]
[1759431743394,35.79825674,232.12,232.07,0.1]
[1759431743694,0.69,232.11,232.07,0.1]
[1759431743897,0.69,232.16,232.08,0.7]
[1759431744193,30.8,232.15,232.08,0.7]
[1759431744805,4.30774532,232.14,232.08,0.7]
[1759431745005,0.69,232.15,232.08,5.00883698]
[1759431745430,4.30737422,232.16,232.08,4.30883698]
[1759431745631,4.30737422,232.16,232.09,0.7]
[1759431746120,10.68999999,232.21,232.11,20.8]
[1759431746321,10.87647521,232.19,232.11,20.8]
[1759431746525,3.45194037,232.18,232.08,25.10883698]
[1759431746732,0.69,232.17,232.09,0.7]
[1759431746959,4.30737422,232.16,232.09,5.00860475]
[1759431747226,4.99730145,232.17,232.08,20.78860476]
[1759431747534,31.5,232.16,232.07,0.1]
[1759431747743,5.00730145,232.17,232.07,0.1]
[1759431749231,5.00730145,232.17,232.08,0.38]
[1759431749532,35.10697698,232.19,232.09,4.30867335]
[1759431749727,35.10697698,232.19,232.1,0.38]
[1759431749920,0.7,232.18,232.1,21.18]
[1759431750834,30.8,232.19,232.09,35.88035674]
[1759431751033,0.7,232.21,232.12,20.8]
[1759431751211,0.7,232.21,232.14,20.8]
[1759431751212,5.00655788,232.21,232.14,20.8]
[1759431751621,7.30447417,232.22,232.14,20.8]
[1759431751821,35.08620985,232.23,232.16,20.8]
[1759431751822,31.49,232.23,232.16,20.8]
[1759431752032,0.71,232.26,232.17,0.38]
[1759431752208,0.71,232.26,232.16,20.8]
[1759431752534,0.71,232.25,232.16,20.8]
[1759431752702,0.71,232.24,232.16,20.8]
[1759431753336,5.01594297,232.24,232.17,4.30718869]
[1759431757726,0.71,232.24,232.17,4.30718869]
[1759431758344,41.54257535,232.29,232.17,4.30718869]
[1759431758345,0.71,232.26,232.2,20.8]
[1759431758634,4.3053343,232.27,232.2,20.8]
[1759431759034,0.71,232.28,232.2,20.8]
[1759431759210,17.82282938,232.39,232.24,20.8]
[1759431759420,0.71,232.34,232.25,0.38]
[1759431759619,5.01421189,232.34,232.25,4.6856401]
[1759431759825,0.71,232.34,232.28,20.8]
[1759431760052,4.30329632,232.38,232.28,21.18]
[1759431760259,0.71,232.34,232.28,20.8]
[1759431760614,0.71,232.37,232.28,20.8]
[1759431760914,4.30329632,232.38,232.28,20.8]
[1759431761116,4.30366672,232.36,232.29,4.30496362]
[1759431762143,0.71,232.37,232.29,4.68496362]
[1759431762440,4.30341617,232.38,232.3,21.18]
[1759431762848,4.30341617,232.38,232.31,20.8]
[1759431763139,5.01341617,232.38,232.31,20.8]
[1759431763432,5.01341617,232.38,232.31,25.10455624]
[1759431766022,0.91,232.41,232.32,0.38]
[1759431766227,0.2,232.41,232.32,0.38]
[1759431766428,0.2,232.41,232.36,20.8]
[1759431766726,0.2,232.41,232.38,20.8]
[1759431767128,0.2,232.41,232.39,0.38]
[1759431767451,0.2,232.41,232.4,4.68292598]
[1759431768153,0.2,232.41,232.4,25.48292598]
[1759431769554,0.2,232.45,232.4,36.24024095]
[1759431769732,0.2,232.45,232.44,20.8]
[1759431770133,0.2,232.45,232.44,51.54]
[1759431770447,0.2,232.45,232.41,0.38]
[1759431770739,0.2,232.45,232.44,20.8]
[1759431771734,0.2,232.45,232.44,31.12]
[1759431772534,0.2,232.45,232.44,30.74]
[1759431773344,0.2,232.45,232.44,31.12]
[1759431773658,0.2,232.45,232.44,0.38]
[1759431773866,0.2,232.45,232.44,31.12]
[1759431775256,0.2,232.45,232.44,20.8]
[1759431775744,0.2,232.45,232.44,51.54]
[1759431775924,0.2,232.45,232.44,55.84218551]
[1759431777045,0.2,232.45,232.44,72.94218551]
[1759431777435,0.2,232.45,232.44,42.20218551]
[1759431777948,0.91,232.45,232.38,11.13801377]
[1759431778134,0.91,232.45,232.38,10.75801377]
[1759431778327,0.91,232.45,232.42,20.8]
[1759431778527,0.71,232.44,232.39,4.30311114]
[1759431778848,0.2,232.45,232.36,15.0557854]
[1759431778849,0.71,232.43,232.36,15.0557854]
[1759431779044,0.71,232.42,232.37,30.72]
[1759431779252,0.71,232.41,232.4,20.8]
[1759431779422,0.71,232.41,232.37,30.72]
[1759431779746,0.71,232.41,232.37,35.02338149]
[1759431779943,0.71,232.41,232.4,20.8]
[1759431780135,0.71,232.44,232.4,20.8]
[1759431780446,0.71,232.43,232.4,20.8]
[1759431780626,0.71,232.43,232.37,35.02348076]
[1759431780627,0.71,232.43,232.38,20.8]
[1759431780829,0.71,232.43,232.39,30.72]
[1759431781730,0.71,232.42,232.41,20.8]
[1759431782341,0.2,232.45,232.41,20.8]
[1759431782649,0.71,232.44,232.41,20.8]
[1759431782853,0.71,232.43,232.41,20.8]
[1759431783055,0.71,232.42,232.34,10.87647521]
[1759431783349,4.50202313,232.45,232.33,4.30409117]
[1759431783350,0.71,232.41,232.33,4.30409117]
[1759431783550,0.71,232.4,232.34,30.72]
[1759431783753,17.02113018,232.45,232.34,51.52]
[1759431783754,0.71,232.39,232.34,51.52]
[1759431783970,0.71,232.38,232.32,17.1]
[1759431784133,1.76410598,232.43,232.32,17.1]
[1759431784134,0.71,232.37,232.32,17.1]
[1759431784334,0.71,232.36,232.32,17.1]
[1759431784530,0.71,232.35,232.31,51.52]
[1759431784756,0.71,232.35,232.26,23.69208734]
[1759431784757,0.71,232.34,232.3,30.72]
[1759431784937,0.71,232.33,232.28,30.72]
[1759431785254,4.30365501,232.37,232.28,30.72]
[1759431785436,0.71,232.36,232.28,30.72]
[1759431785931,4.30313905,232.39,232.31,20.8]
[1759431786142,0.71,232.38,232.31,20.8]
[1759431786532,0.71,232.37,232.31,20.8]
[1759431786861,4.30313905,232.39,232.31,20.8]
[1759431786862,5.01379309,232.36,232.31,20.8]
[1759431787159,0.71,232.35,232.29,30.72]
[1759431788032,0.71,232.35,232.28,25.10508026]
[1759431788334,5.01385644,232.35,232.28,55.82508026]
[1759431788534,0.71,232.34,232.28,20.8]
[1759431788736,0.71,232.34,232.28,51.52]
[1759431788939,0.71,232.33,232.27,4.30531141]
[1759431789173,0.71,232.33,232.27,30.72]
[1759431789548,0.71,232.33,232.26,25.10547114]
[1759431789866,0.71,232.32,232.25,25.10568625]
[1759431790031,0.71,232.32,232.27,30.72]
[1759431790233,15.0634863,232.35,232.21,11.25647521]
[1759431790234,0.71,232.31,232.21,11.25647521]
[1759431790537,15.0634863,232.35,232.21,11.25647521]
[1759431790538,0.71,232.3,232.22,30.72]
[1759431790765,0.71,232.33,232.25,20.8]
[1759431791343,0.71,232.35,232.29,20.8]
[1759431792047,5.01348151,232.37,232.29,20.8]
[1759431792257,0.71,232.37,232.3,4.6847783]
[1759431792460,0.71,232.37,232.3,25.4847783]
[1759431792664,0.71,232.37,232.3,56.2047783]
[1759431793653,0.71,232.36,232.3,55.8247783]
[1759431793865,4.30351007,232.37,232.3,20.8]
[1759431793866,0.71,232.35,232.3,20.8]
[1759431794042,0.71,232.34,232.29,30.72]
[1759431794366,0.71,232.33,232.29,30.72]
[1759431794545,10.75905049,232.37,232.28,20.8]
[1759431794742,0.71,232.32,232.28,30.72]
[1759431795059,0.71,232.34,232.28,30.72]
[1759431795371,5.01366672,232.36,232.28,35.02510986]
[1759431795669,0.71,232.35,232.28,35.02510986]
[1759431796575,0.71,232.37,232.29,0.38]
[1759431796745,0.71,232.36,232.28,35.02510986]
[1759431796943,0.71,232.35,232.28,35.02510986]
[1759431797344,0.71,232.35,232.28,35.40510986]
[1759431797533,0.71,232.37,232.28,35.40510986]
[1759431798539,0.71,232.37,232.28,45.78798225]
[1759431798839,0.71,232.36,232.28,52.12510986]
[1759431799340,0.71,232.36,232.28,52.50510986]
[1759431800064,5.01376696,232.36,232.28,21.78510986]
[1759431800277,5.01376696,232.36,232.29,30.72]
[1759431801445,5.01376696,232.36,232.29,35.02484667]
[1759431801762,4.30376696,232.36,232.29,4.30484667]
[1759431801966,0.71,232.35,232.29,4.30484667]
[1759431802741,4.30376696,232.36,232.29,4.30484667]
[1759431802975,0.71,232.36,232.29,4.30484667]
[1759431803142,10.75752264,232.4,232.31,20.8]
[1759431803143,4.30337208,232.38,232.31,20.8]
[1759431803357,0.71,232.4,232.31,21.18]
[1759431804197,4.30312029,232.39,232.31,21.18]
[1759431804496,4.30312029,232.39,232.33,4.30422244]
[1759431804863,4.97312029,232.39,232.33,4.30422244]
[1759431806165,0.67,232.39,232.33,4.30422244]
[1759431808185,0.67,232.43,232.34,0.38]
[1759431808355,4.9723706,232.43,232.33,4.30422244]
[1759431808562,0.67,232.42,232.32,20.8]
[1759431808758,0.67,232.41,232.32,51.52]
[1759431808982,0.67,232.4,232.32,51.52]
[1759431809279,15.05829711,232.43,232.33,0.38]
[1759431809477,0.67,232.41,232.33,0.38]
[1759431809883,4.30292598,232.4,232.34,4.30403718]
[1759431810187,0.67,232.39,232.34,4.30403718]
[1759431810357,4.30292598,232.4,232.34,4.30403718]
[1759431810358,0.67,232.38,232.34,4.30403718]
[1759431810558,4.30292598,232.4,232.35,0.38]
[1759431810770,4.30275735,232.41,232.35,0.38]
[1759431812475,4.30275735,232.41,232.33,4.68422244]
[1759431814106,0.69,232.4,232.33,4.68422244]
[1759431815282,0.69,232.39,232.33,4.68422244]
[1759431815471,0.69,232.41,232.33,4.68422244]
[1759431815678,0.69,232.41,232.34,0.38]
[1759431816474,0.2,232.45,232.35,10.87647521]
[1759431816700,0.2,232.45,232.36,31.08]
[1759431816870,0.2,232.45,232.39,20.8]
[1759431817301,0.2,232.45,232.4,4.30292598]
[1759431817500,0.2,232.45,232.4,4.68292598]
[1759431817705,0.2,232.45,232.41,0.38]
[1759431817881,0.2,232.45,232.42,0.38]
[1759431818481,0.2,232.45,232.43,0.38]
[1759431818682,0.2,232.45,232.42,4.30255571]
[1759431818884,0.2,232.45,232.43,0.38]
[1759431819518,0.2,232.45,232.42,4.30255571]
[1759431819687,0.2,232.45,232.42,4.68255571]
[1759431819888,0.2,232.45,232.43,0.38]
[1759431820289,0.2,232.45,232.42,4.30255571]
[1759431820794,0.2,232.45,232.42,35.00255571]
[1759431821186,0.2,232.45,232.42,4.30255571]
[1759431821390,0.2,232.45,232.42,0.38]
[1759431821585,0.2,232.45,232.41,10.7566736]
[1759431821586,0.2,232.45,232.43,31.08]
[1759431821905,0.2,232.45,232.44,17.1]
[1759431822213,0.2,232.45,232.44,17.48]
[1759431822896,0.2,232.45,232.44,0.38]
[1759431823812,0.2,232.45,232.44,4.68218551]
[1759431824522,0.2,232.49,232.47,20.8]
[1759431824690,0.2,232.49,232.47,51.5]
[1759431825814,0.69,232.48,232.45,4.30185138]
[1759431826022,0.69,232.47,232.46,30.68]
[1759431826319,0.89,232.49,232.46,30.68]
[1759431826503,0.69,232.47,232.45,30.68]
[1759431826917,0.89,232.49,232.45,30.68]
[1759431827106,0.69,232.48,232.45,30.68]
[1759431827311,0.69,232.47,232.45,30.68]
[1759431828608,0.2,232.49,232.44,51.48]
[1759431828609,0.69,232.46,232.44,51.48]
[1759431829590,4.501287,232.49,232.44,20.8]
[1759431829798,0.69,232.48,232.44,20.8]
[1759431829996,0.69,232.47,232.38,10.75157124]
[1759431830211,0.69,232.46,232.4,20.8]
[1759431830413,0.69,232.45,232.4,20.8]
[1759431830600,4.99218551,232.44,232.4,20.8]
[1759431830801,0.69,232.43,232.4,20.8]
[1759431831020,0.69,232.42,232.4,20.8]
[1759431831203,0.69,232.41,232.37,30.68]
[1759431831406,0.69,232.4,232.31,11.14104435]
[1759431831607,4.30218551,232.44,232.32,45.74542699]
[1759431831807,15.17792049,232.48,232.33,0.38]
[1759431832118,3.44447125,232.47,232.36,20.8]
[1759431832301,0.69,232.46,232.36,51.48]
[1759431832503,15.05764928,232.44,232.34,4.3039442]
[1759431832701,0.69,232.43,232.35,30.68]
[1759431832899,0.69,232.42,232.35,30.68]
[1759431833098,0.69,232.41,232.35,30.68]
[1759431833304,0.69,232.44,232.38,20.8]
[1759431833505,0.69,232.47,232.39,30.68]
[1759431834219,0.69,232.47,232.39,31.06]
[1759431834426,0.69,232.47,232.41,4.30274084]
[1759431834737,0.2,232.49,232.42,20.8]
[1759431835235,0.2,232.49,232.43,30.68]
[1759431835837,0.2,232.49,232.44,4.30218551]
[1759431836201,0.89,232.49,232.44,4.30218551]
[1759431836915,0.69,232.48,232.44,4.30218551]
[1759431837303,0.2,232.49,232.46,20.8]
[1759431837822,0.2,232.49,232.47,25.10163031]
[1759431840320,0.2,232.49,232.44,10.75546377]
[1759431840321,0.2,232.49,232.48,20.8]
[1759431840526,0.2,232.49,232.45,34.98189169]
[1759431840742,0.69,232.48,232.45,30.68]
[1759431840952,0.2,232.49,232.45,30.68]
[1759431841125,0.2,232.49,232.44,30.68]
[1759431841830,0.2,232.49,232.48,4.30144528]
[1759431842039,0.2,232.49,232.48,25.10144528]
[1759431843051,0.86,232.49,232.46,4.30165866]
[1759431843824,0.2,232.49,232.46,25.10165866]
[1759431845541,0.86,232.49,232.46,25.10165866]
[1759431846149,0.2,232.49,232.46,25.10165866]
[1759431846545,0.86,232.49,232.46,25.10165866]
[1759431848447,0.2,232.49,232.46,25.10165866]
[1759431848936,0.2,232.49,232.47,0.38]
[1759431849248,0.2,232.49,232.48,30.66]
[1759431850243,0.2,232.49,232.48,31.04]
[1759431850554,0.2,232.49,232.48,35.34144528]
[1759431851049,0.2,232.49,232.48,34.96144528]
[1759431851431,0.2,232.49,232.48,35.34144528]
[1759431851952,0.2,232.49,232.48,34.96144528]
[1759431852149,0.2,232.49,232.48,35.34144528]
[1759431855028,0.2,232.49,232.48,55.76144528]
[1759431855432,0.86,232.49,232.48,20.8]
[1759431855635,0.86,232.49,232.48,25.10144528]
[1759431856845,0.86,232.49,232.46,20.8]
[1759431857147,0.66,232.48,232.46,51.46]
[1759431857648,0.66,232.47,232.43,34.9623706]
[1759431857844,0.66,232.46,232.43,34.9623706]
[1759431858150,0.66,232.45,232.43,34.9623706]
[1759431858640,0.66,232.48,232.43,34.9623706]
[1759431858841,0.66,232.47,232.43,34.9623706]
[1759431859043,0.66,232.46,232.43,34.9623706]
[1759431859958,0.66,232.45,232.43,34.9623706]
[1759431860460,0.66,232.47,232.43,34.9623706]
[1759431860771,0.66,232.46,232.43,34.9623706]
[1759431861057,0.2,232.49,232.44,20.8]
[1759431861263,0.66,232.46,232.44,20.8]
[1759431861570,0.66,232.46,232.43,25.1023706]
[1759431863042,0.86,232.49,232.43,25.1023706]
[1759431864039,0.86,232.49,232.43,4.3023706]
[1759431864236,0.86,232.49,232.43,34.9423706]
[1759431864846,0.86,232.49,232.42,15.05875234]
[1759431865534,0.86,232.49,232.43,30.64]
[1759431865958,0.2,232.49,232.46,20.8]
[1759431866168,0.2,232.49,232.47,30.64]
[1759431866661,0.72,232.48,232.46,30.64]
[1759431866860,0.2,232.49,232.45,4.30200043]
[1759431866861,0.72,232.47,232.45,4.30200043]
[1759431867759,0.72,232.46,232.38,10.75781275]
[1759431868065,0.72,232.45,232.39,45.70088901]
[1759431868763,0.92,232.49,232.42,20.8]
[1759431868955,0.92,232.49,232.44,4.30218551]
[1759431869133,0.2,232.49,232.44,34.94218551]
[1759431869336,0.2,232.49,232.44,35.32218551]
[1759431869568,0.2,232.49,232.44,46.07764928]
[1759431872339,0.2,232.49,232.44,66.87764928]
[1759431873287,0.2,232.49,232.44,66.49764928]
[1759431873576,0.89,232.49,232.44,66.49764928]
[1759431874279,0.2,232.49,232.44,66.49764928]
[1759431874441,7.45692851,232.67,232.47,20.8]
[1759431874638,0.69,232.64,232.51,20.8]
[1759431874840,2.75447125,232.62,232.51,20.8]
[1759431875059,4.49831045,232.65,232.47,20.8]
[1759431875060,3.44447125,232.61,232.47,20.8]
[1759431875257,2.75447125,232.59,232.48,34.94144528]
[1759431875452,2.75447125,232.57,232.47,51.44]
[1759431875654,0.69,232.56,232.47,51.44]
[1759431875852,15.04729147,232.6,232.47,51.44]
[1759431875853,0.69,232.55,232.47,51.44]
[1759431876051,0.69,232.54,232.47,51.44]
[1759431876250,0.69,232.53,232.47,51.44]
[1759431876446,0.69,232.52,232.41,0.38]
[1759431876653,0.69,232.52,232.42,30.64]
[1759431876961,0.69,232.51,232.42,51.82]
[1759431877160,0.69,232.5,232.43,4.3023706]
[1759431877347,17.80499801,232.55,232.43,4.3023706]
[1759431877659,0.69,232.54,232.43,4.3023706]
[1759431877846,17.80499801,232.55,232.43,4.3023706]
[1759431877847,0.69,232.53,232.43,4.3023706]
[1759431878050,0.69,232.52,232.43,15.43829711]
[1759431878252,0.69,232.51,232.43,15.43829711]
[1759431879460,13.63094646,232.57,232.43,15.05829711]
[1759431879656,0.69,232.57,232.47,20.8]
[1759431879956,0.69,232.57,232.48,31.02]
[1759431881261,0.69,232.56,232.49,4.30126026]
[1759431882150,0.69,232.56,232.51,4.30089028]
[1759431882350,4.29978071,232.57,232.51,4.30089028]
[1759431882570,0.69,232.56,232.49,4.30119234]
[1759431882754,4.29978071,232.57,232.49,4.30119234]
[1759431882755,0.69,232.55,232.5,30.64]
[1759431882953,0.69,232.54,232.49,4.30119234]
[1759431883154,0.69,232.53,232.5,30.64]
[1759431883556,0.69,232.54,232.5,30.64]
[1759431883754,0.69,232.53,232.5,34.94106273]
[1759431883958,4.29959583,232.58,232.5,34.94106273]
[1759431884271,0.69,232.55,232.5,34.94106273]
[1759431884476,0.69,232.54,232.5,34.94106273]
[1759431884670,0.69,232.56,232.5,34.94106273]
[1759431885187,4.99013325,232.56,232.5,34.94106273]
[1759431885564,0.69,232.55,232.5,30.64]
[1759431885753,0.69,232.54,232.47,20.8]
[1759431885953,0.69,232.53,232.47,51.42]
[1759431886869,0.69,232.53,232.48,4.30144528]
[1759431887263,0.69,232.52,232.48,4.30144528]
[1759431887788,4.99036478,232.54,232.48,4.30144528]
[1759431887965,0.69,232.53,232.48,4.30144528]
[1759431888166,0.69,232.52,232.48,4.30144528]
[1759431888892,0.69,232.51,232.47,55.72161137]
[1759431889267,0.69,232.51,232.47,52.32303103]
[1759431889467,0.69,232.51,232.47,21.70303103]